[Event "Latvijas 2022. gada jauniešu čempionāta fināls"]
[Site "Riga, Latvia"]
[Date "2022.06.16"]
[Round "8.23"]
[White "Lahs, Einars"]
[Black "Sestakovs, Maksims"]
[Result "1-0"]
[TimeControl "3600+30"]
[WhiteElo "1675"]
[BlackElo "1138"]

1. e4 {[%clk 00:55:36]} {[%emt 00:05:24]} e6 {[%clk 01:00:56]} {[%emt
00:00:04]} 2. d4 {[%clk 00:55:58]} {[%emt 00:00:09]} b6 {[%clk 01:01:20]}
{[%emt 00:00:05]} 3. Nf3 {[%clk 00:56:22]} {[%emt 00:00:06]} Bb7 {[%clk
01:01:43]} {[%emt 00:00:07]} 4. Bd3 {[%clk 00:56:47]} {[%emt 00:00:05]} Nf6
{[%clk 01:01:49]} {[%emt 00:00:24]} 5. Qe2 {[%clk 00:55:06]} {[%emt 00:02:11]}
d6 {[%clk 01:01:58]} {[%emt 00:00:22]} 6. O-O {[%clk 00:49:23]} {[%emt
00:06:12]} Nbd7 {[%clk 01:02:15]} {[%emt 00:00:13]} 7. c4 {[%clk 00:46:05]}
{[%emt 00:03:48]} Be7 {[%clk 01:01:54]} {[%emt 00:00:51]} 8. Re1 {[%clk
00:36:05]} {[%emt 00:10:31]} O-O {[%clk 01:02:14]} {[%emt 00:00:09]} 9. Nc3
{[%clk 00:34:30]} {[%emt 00:02:05]} a6 {[%clk 01:01:38]} {[%emt 00:01:06]} 10.
Qc2 {[%clk 00:28:27]} {[%emt 00:06:34]} e5 {[%clk 01:01:26]} {[%emt 00:00:41]}
11. d5 {[%clk 00:26:04]} {[%emt 00:02:54]} Nc5 {[%clk 01:01:26]} {[%emt
00:00:30]} 12. b3 {[%clk 00:14:39]} {[%emt 00:11:55]} Nxd3 {[%clk 01:01:15]}
{[%emt 00:00:40]} 13. Qxd3 {[%clk 00:14:31]} {[%emt 00:00:39]} Nd7 {[%clk
00:59:50]} {[%emt 00:01:54]} 14. Be3 {[%clk 00:10:48]} {[%emt 00:04:14]} f6
{[%clk 00:58:34]} {[%emt 00:01:45]} 15. Nh4 {[%clk 00:10:40]} {[%emt 00:00:36]}
Rf7 {[%clk 00:58:05]} {[%emt 00:01:01]} 16. Nf5 {[%clk 00:08:56]} {[%emt
00:02:15]} Kh8 {[%clk 00:56:45]} {[%emt 00:01:49]} 17. Rad1 {[%clk 00:08:32]}
{[%emt 00:00:54]} Bf8 {[%clk 00:55:50]} {[%emt 00:01:26]} 18. Qe2 {[%clk
00:06:47]} {[%emt 00:02:14]} g6 {[%clk 00:54:24]} {[%emt 00:01:56]} 19. Ng3
{[%clk 00:06:38]} {[%emt 00:00:39]} Bg7 {[%clk 00:54:41]} {[%emt 00:00:14]} 20.
f4 {[%clk 00:05:43]} {[%emt 00:01:25]} Nf8 {[%clk 00:54:25]} {[%emt 00:00:45]}
21. Rf1 {[%clk 00:03:27]} {[%emt 00:02:45]} Qe8 {[%clk 00:53:33]} {[%emt
00:01:23]} 22. Rf2 {[%clk 00:00:33]} {[%emt 00:03:24]} Bc8 {[%clk 00:54:00]}
{[%emt 00:00:03]} 23. Rdf1 {[%clk 00:00:35]} {[%emt 00:00:28]} Nd7 {[%clk
00:53:04]} {[%emt 00:01:26]} 24. fxe5 {[%clk 00:00:53]} {[%emt 00:00:12]} Nxe5
{[%clk 00:53:03]} {[%emt 00:00:30]} 25. h3 {[%clk 00:00:53]} {[%emt 00:00:30]}
Bd7 {[%clk 00:52:51]} {[%emt 00:00:43]} 26. Bd4 {[%clk 00:00:50]} {[%emt
00:00:33]} Qe7 {[%clk 00:52:58]} {[%emt 00:00:23]} 27. Qd2 {[%clk 00:00:38]}
{[%emt 00:00:42]} Raf8 {[%clk 00:51:51]} {[%emt 00:01:37]} 28. Nce2 {[%clk
00:00:35]} {[%emt 00:00:33]} b5 {[%clk 00:51:13]} {[%emt 00:01:09]} 29. cxb5
{[%clk 00:00:34]} {[%emt 00:00:31]} Bxb5 {[%clk 00:51:32]} {[%emt 00:00:10]} 30.
Qc3 {[%clk 00:00:32]} {[%emt 00:00:33]} Rc8 {[%clk 00:50:08]} {[%emt 00:01:53]}
31. Bxe5 {[%clk 00:00:46]} {[%emt 00:00:17]} dxe5 {[%clk 00:50:35]} {[%emt
00:00:02]} 32. Rd1 {[%clk 00:00:33]} {[%emt 00:00:43]} Qd6 {[%clk 00:50:32]}
{[%emt 00:00:33]} 33. Qc2 {[%clk 00:00:36]} {[%emt 00:00:27]} Bh6 {[%clk
00:49:58]} {[%emt 00:01:04]} 34. Rf3 {[%clk 00:00:50]} {[%emt 00:00:17]} Qb6+
{[%clk 00:50:24]} {[%emt 00:00:04]} 35. Kh2 {[%clk 00:01:03]} {[%emt 00:00:16]}
Qd6 {[%clk 00:49:20]} {[%emt 00:01:33]} 36. Nc3 {[%clk 00:00:38]} {[%emt
00:00:57]} Bd7 {[%clk 00:48:31]} {[%emt 00:01:19]} 37. Qd3 {[%clk 00:00:33]}
{[%emt 00:00:35]} Bf4 {[%clk 00:47:40]} {[%emt 00:01:20]} 38. Qc4 {[%clk
00:00:34]} {[%emt 00:00:30]} f5 {[%clk 00:46:16]} {[%emt 00:01:53]} 39. Nce2
{[%clk 00:00:32]} {[%emt 00:00:33]} Bb5 {[%clk 00:44:01]} {[%emt 00:02:44]} 40.
Qc2 {[%clk 00:00:54]} {[%emt 00:00:08]} Bxg3+ {[%clk 00:43:29]} {[%emt
00:01:02]} 41. Nxg3 {[%clk 00:01:03]} {[%emt 00:00:22]} f4 {[%clk 00:43:36]}
{[%emt 00:00:22]} 42. Nf1 {[%clk 00:00:50]} {[%emt 00:00:43]} g5 {[%clk
00:42:51]} {[%emt 00:01:15]} 43. Rc3 {[%clk 00:00:32]} {[%emt 00:00:48]} Rf6
{[%clk 00:41:16]} {[%emt 00:02:05]} 44. Rc1 {[%clk 00:00:31]} {[%emt 00:00:32]}
Rf7 {[%clk 00:38:25]} {[%emt 00:03:20]} 45. a4 {[%clk 00:00:32]} {[%emt
00:00:30]} Bxf1 {[%clk 00:37:09]} {[%emt 00:01:44]} 46. Rxf1 {[%clk 00:01:01]}
{[%emt 00:00:02]} Qd7 {[%clk 00:32:19]} {[%emt 00:05:19]} 47. Rc6 {[%clk
00:00:59]} {[%emt 00:00:33]} g4 {[%clk 00:29:05]} {[%emt 00:03:44]} 48. Qc3
{[%clk 00:00:57]} {[%emt 00:00:32]} Re7 {[%clk 00:28:36]} {[%emt 00:00:59]} 49.
Rxf4 {[%clk 00:01:05]} {[%emt 00:00:22]} gxh3 {[%clk 00:28:11]} {[%emt
00:00:54]} 50. gxh3 {[%clk 00:01:33]} {[%emt 00:00:03]} Qe8 {[%clk 00:28:00]}
{[%emt 00:00:42]} 51. Rcf6 {[%clk 00:01:00]} {[%emt 00:01:03]} Qh5 {[%clk
00:27:12]} {[%emt 00:01:16]} 52. Rf8+ {[%clk 00:01:00]} {[%emt 00:00:32]} Rxf8
{[%clk 00:27:03]} {[%emt 00:00:39]} 53. Rxf8+ {[%clk 00:01:29]} Kg7 {[%clk
00:27:09]} {[%emt 00:00:23]} 54. Qf3 {[%clk 00:01:18]} {[%emt 00:00:40]} Qxf3
{[%clk 00:26:43]} {[%emt 00:00:57]} 55. Rxf3 {[%clk 00:01:47]} {[%emt
00:00:02]} Rf7 {[%clk 00:24:51]} {[%emt 00:02:21]} 56. Rxf7+ {[%clk 00:01:03]}
{[%emt 00:01:14]} Kxf7 {[%clk 00:25:10]} {[%emt 00:00:11]} 57. b4 {[%clk
00:01:26]} {[%emt 00:00:06]} Kf6 {[%clk 00:22:38]} {[%emt 00:03:02]} 58. Kg3
{[%clk 00:01:41]} {[%emt 00:00:15]} Kg5 {[%clk 00:22:05]} {[%emt 00:01:02]} 59.
a5 {[%clk 00:02:10]} {[%emt 00:00:02]} h5 {[%clk 00:20:23]} {[%emt 00:02:12]}
60. b5 {[%clk 00:02:38]} {[%emt 00:00:02]} axb5 {[%clk 00:20:32]} {[%emt
00:00:22]} 61. a6 {[%clk 00:03:07]} {[%emt 00:00:01]} b4 {[%clk 00:19:09]}
{[%emt 00:01:53]} 62. a7 {[%clk 00:03:36]} {[%emt 00:00:01]} b3 {[%clk
00:19:19]} {[%emt 00:00:20]} 63. a8=Q {[%clk 00:04:02]} {[%emt 00:00:03]} h4+
{[%clk 00:19:35]} {[%emt 00:00:14]} 64. Kf3 {[%clk 00:04:26]} {[%emt 00:00:06]}
b2 {[%clk 00:19:44]} {[%emt 00:00:21]} 65. Qb7 {[%clk 00:04:51]} {[%emt
00:00:05]} b1=Q {[%clk 00:20:03]} {[%emt 00:00:11]} 66. Qxb1 {[%clk 00:05:17]}
{[%emt 00:00:04]} c5 {[%clk 00:20:13]} {[%emt 00:00:21]} 67. dxc6 {[%clk
00:05:40]} {[%emt 00:00:07]} Kh5 {[%clk 00:20:33]} {[%emt 00:00:09]} 68. c7
{[%clk 00:05:58]} {[%emt 00:00:12]} Kh6 {[%clk 00:20:54]} {[%emt 00:00:09]} 69.
c8=Q {[%clk 00:06:13]} {[%emt 00:00:14]} Kh5 {[%clk 00:21:14]} {[%emt
00:00:11]} 70. Qg4+ {[%clk 00:06:35]} {[%emt 00:00:08]} Kh6 {[%clk 00:21:30]}
{[%emt 00:00:13]} 71. Qb6+ {[%clk 00:07:01]} {[%emt 00:00:05]} Kh7 {[%clk
00:21:47]} {[%emt 00:00:13]} 72. Qbg6+ {[%clk 00:07:26]} {[%emt 00:00:05]} Kh8
{[%clk 00:22:06]} {[%emt 00:00:12]} 73. Qh6# {[%clk 00:07:49]} {[%emt
00:00:07]} 1-0

[Event "Latvijas 2022. gada jauniešu čempionāta fināls"]
[Site "Riga, Latvia"]
[Date "2022.06.16"]
[Round "8.24"]
[White "Steinbergs, Raivo"]
[Black "Podojniks, Marks Ernests"]
[Result "0-1"]
[TimeControl "3600+30"]
[WhiteElo "1397"]
[BlackElo "1372"]

1. d4 {[%clk 01:00:58]} {[%emt 00:00:01]} d5 {[%clk 01:00:58]} {[%emt
00:00:03]} 2. Nf3 {[%clk 01:01:22]} {[%emt 00:00:05]} Nf6 {[%clk 01:01:25]}
{[%emt 00:00:03]} 3. Bf4 {[%clk 01:01:46]} {[%emt 00:00:07]} Bf5 {[%clk
01:01:50]} {[%emt 00:00:04]} 4. e3 {[%clk 01:02:11]} {[%emt 00:00:06]} e6
{[%clk 01:02:16]} {[%emt 00:00:04]} 5. Bd3 {[%clk 01:01:40]} {[%emt 00:00:59]}
Ne4 {[%clk 01:01:26]} {[%emt 00:01:20]} 6. Nbd2 {[%clk 01:01:52]} {[%emt
00:00:18]} Nd7 {[%clk 01:01:15]} {[%emt 00:00:42]} 7. Ne5 {[%clk 00:57:33]}
{[%emt 00:04:50]} Ndf6 {[%clk 00:54:45]} {[%emt 00:07:00]} 8. Nxe4 {[%clk
00:54:43]} {[%emt 00:03:19]} Nxe4 {[%clk 00:53:06]} {[%emt 00:02:09]} 9. f3
{[%clk 00:54:37]} {[%emt 00:00:36]} Nd6 {[%clk 00:53:18]} {[%emt 00:00:18]} 10.
Bxf5 {[%clk 00:50:53]} {[%emt 00:04:14]} Nxf5 {[%clk 00:53:17]} {[%emt
00:00:30]} 11. Qe2 {[%clk 00:49:50]} {[%emt 00:01:32]} c6 {[%clk 00:53:02]}
{[%emt 00:00:48]} 12. g4 {[%clk 00:49:15]} {[%emt 00:01:05]} Nd6 {[%clk
00:50:33]} {[%emt 00:02:59]} 13. h4 {[%clk 00:47:59]} {[%emt 00:01:45]} Be7
{[%clk 00:49:58]} {[%emt 00:01:05]} 14. O-O-O {[%clk 00:46:23]} {[%emt
00:02:07]} Qa5 {[%clk 00:48:49]} {[%emt 00:01:37]} 15. Kb1 {[%clk 00:44:29]}
{[%emt 00:02:26]} f6 {[%clk 00:47:04]} {[%emt 00:02:15]} 16. Nd3 {[%clk
00:41:52]} {[%emt 00:03:06]} Nc4 {[%clk 00:45:52]} {[%emt 00:01:42]} 17. e4
{[%clk 00:40:46]} {[%emt 00:01:36]} Qb6 {[%clk 00:44:28]} {[%emt 00:01:53]} 18.
c3 {[%clk 00:37:42]} {[%emt 00:03:34]} O-O-O {[%clk 00:41:57]} {[%emt
00:03:02]} 19. exd5 {[%clk 00:35:31]} {[%emt 00:02:42]} cxd5 {[%clk 00:41:52]}
{[%emt 00:00:34]} 20. Rhe1 {[%clk 00:34:43]} {[%emt 00:01:15]} e5 {[%clk
00:41:24]} {[%emt 00:01:01]} 21. dxe5 {[%clk 00:32:33]} {[%emt 00:02:40]} fxe5
{[%clk 00:41:41]} {[%emt 00:00:13]} 22. Nxe5 {[%clk 00:31:05]} {[%emt
00:01:58]} Bxh4 {[%clk 00:40:25]} {[%emt 00:01:46]} 23. Nxc4 {[%clk 00:31:09]}
{[%emt 00:00:26]} Qg6+ {[%clk 00:40:04]} {[%emt 00:00:50]} 24. Kc1 {[%clk
00:28:51]} {[%emt 00:02:49]} Bxe1 {[%clk 00:39:30]} {[%emt 00:01:04]} 25. Nd6+
{[%clk 00:29:12]} {[%emt 00:00:08]} Rxd6 {[%clk 00:39:28]} {[%emt 00:00:34]} 26.
Bxd6 {[%clk 00:28:38]} {[%emt 00:01:04]} Qxd6 {[%clk 00:39:50]} {[%emt
00:00:07]} 27. Rxe1 {[%clk 00:28:57]} {[%emt 00:00:10]} Qh6+ {[%clk 00:39:38]}
{[%emt 00:00:42]} 28. Kc2 {[%clk 00:28:35]} {[%emt 00:00:48]} Qg6+ {[%clk
00:40:02]} {[%emt 00:00:11]} 29. Qd3 {[%clk 00:28:47]} {[%emt 00:00:17]} Qxd3+
{[%clk 00:40:04]} {[%emt 00:00:29]} 30. Kxd3 {[%clk 00:29:12]} {[%emt
00:00:05]} Kd7 {[%clk 00:40:29]} {[%emt 00:00:05]} 31. Kd4 {[%clk 00:29:38]}
{[%emt 00:00:04]} Kd6 {[%clk 00:40:48]} {[%emt 00:00:09]} 32. Re5 {[%clk
00:30:00]} {[%emt 00:00:10]} Rf8 {[%clk 00:40:43]} {[%emt 00:00:34]} 33. Rxd5+
{[%clk 00:30:15]} {[%emt 00:00:17]} Ke6 {[%clk 00:40:35]} {[%emt 00:00:36]} 34.
Kc4 {[%clk 00:29:41]} {[%emt 00:01:02]} Rxf3 {[%clk 00:40:46]} {[%emt
00:00:23]} 35. b3 {[%clk 00:27:12]} {[%emt 00:02:59]} Rf4+ {[%clk 00:40:06]}
{[%emt 00:01:09]} 36. Rd4 {[%clk 00:27:22]} {[%emt 00:00:21]} Ke5 {[%clk
00:39:04]} {[%emt 00:01:31]} 37. Rxf4 {[%clk 00:27:42]} {[%emt 00:00:10]} Kxf4
{[%clk 00:39:29]} {[%emt 00:00:06]} 38. Kd5 {[%clk 00:28:07]} {[%emt 00:00:04]}
Kxg4 {[%clk 00:39:52]} {[%emt 00:00:08]} 39. c4 {[%clk 00:28:32]} {[%emt
00:00:05]} h5 {[%clk 00:40:15]} {[%emt 00:00:06]} 40. c5 {[%clk 00:28:55]}
{[%emt 00:00:08]} h4 {[%clk 00:40:37]} {[%emt 00:00:07]} 41. b4 {[%clk
00:28:56]} {[%emt 00:00:30]} h3 {[%clk 00:41:01]} {[%emt 00:00:06]} 42. Kd6
{[%clk 00:28:44]} {[%emt 00:00:41]} h2 {[%clk 00:41:26]} {[%emt 00:00:05]} 43.
b5 {[%clk 00:28:26]} {[%emt 00:00:49]} h1=Q {[%clk 00:41:42]} {[%emt 00:00:13]}
44. c6 {[%clk 00:28:54]} {[%emt 00:00:03]} bxc6 {[%clk 00:41:41]} {[%emt
00:00:30]} 45. bxc6 {[%clk 00:29:03]} {[%emt 00:00:21]} Qh2+ {[%clk 00:41:40]}
{[%emt 00:00:30]} 46. Kd7 {[%clk 00:29:21]} {[%emt 00:00:14]} Qxa2 {[%clk
00:41:48]} {[%emt 00:00:22]} 0-1

[Event "Latvijas 2022. gada jauniešu čempionāta fināls"]
[Site "Riga, Latvia"]
[Date "2022.06.16"]
[Round "8.25"]
[White "Fridensteins-Bridins, Atis"]
[Black "Stinka, Gustavs"]
[Result "1-0"]
[TimeControl "3600+30"]
[WhiteElo "1704"]
[BlackElo "1086"]

1. d4 {[%clk 01:00:57]} {[%emt 00:00:02]} Nf6 {[%clk 01:00:56]} {[%emt
00:00:04]} 2. c4 {[%clk 01:01:24]} {[%emt 00:00:04]} c5 {[%clk 01:01:19]}
{[%emt 00:00:05]} 3. d5 {[%clk 01:01:42]} {[%emt 00:00:13]} e6 {[%clk
01:01:43]} {[%emt 00:00:07]} 4. Nc3 {[%clk 01:00:41]} {[%emt 00:01:30]} exd5
{[%clk 01:02:01]} {[%emt 00:00:13]} 5. cxd5 {[%clk 01:01:08]} {[%emt 00:00:03]}
d6 {[%clk 01:02:27]} {[%emt 00:00:04]} 6. e4 {[%clk 01:00:07]} {[%emt
00:01:30]} g6 {[%clk 01:02:45]} {[%emt 00:00:13]} 7. Bf4 {[%clk 00:59:13]}
{[%emt 00:01:23]} a6 {[%clk 01:01:28]} {[%emt 00:01:48]} 8. a4 {[%clk
00:59:07]} {[%emt 00:00:36]} b6 {[%clk 01:01:50]} {[%emt 00:00:07]} 9. Bd3
{[%clk 00:55:28]} {[%emt 00:04:08]} Bg7 {[%clk 01:01:56]} {[%emt 00:00:25]} 10.
Nge2 {[%clk 00:55:42]} {[%emt 00:00:16]} O-O {[%clk 01:02:09]} {[%emt
00:00:17]} 11. Qd2 {[%clk 00:54:50]} {[%emt 00:01:22]} Nh5 {[%clk 01:02:11]}
{[%emt 00:00:28]} 12. Bh6 {[%clk 00:53:02]} {[%emt 00:02:17]} Nd7 {[%clk
01:02:11]} {[%emt 00:00:32]} 13. Ng3 {[%clk 00:46:29]} {[%emt 00:07:03]} Nhf6
{[%clk 01:00:49]} {[%emt 00:01:52]} 14. Bxg7 {[%clk 00:43:22]} {[%emt
00:03:37]} Kxg7 {[%clk 01:01:15]} {[%emt 00:00:03]} 15. f4 {[%clk 00:43:32]}
{[%emt 00:00:20]} Re8 {[%clk 01:01:02]} {[%emt 00:00:43]} 16. O-O {[%clk
00:43:00]} {[%emt 00:01:02]} c4 {[%clk 00:59:29]} {[%emt 00:02:04]} 17. Bxc4
{[%clk 00:42:13]} {[%emt 00:01:17]} Nc5 {[%clk 00:59:52]} {[%emt 00:00:06]} 18.
Rae1 {[%clk 00:42:09]} {[%emt 00:00:34]} Qc7 {[%clk 01:00:13]} {[%emt
00:00:10]} 19. e5 {[%clk 00:26:59]} {[%emt 00:15:41]} dxe5 {[%clk 00:57:17]}
{[%emt 00:03:25]} 20. d6 {[%clk 00:27:26]} {[%emt 00:00:03]} Nce4 {[%clk
00:57:01]} {[%emt 00:00:45]} 21. Ncxe4 {[%clk 00:25:24]} {[%emt 00:02:32]} Qxc4
{[%clk 00:57:12]} {[%emt 00:00:20]} 22. Nxf6 {[%clk 00:23:15]} {[%emt
00:02:38]} Kxf6 {[%clk 00:56:55]} {[%emt 00:00:47]} 23. d7 {[%clk 00:20:31]}
{[%emt 00:03:15]} Rd8 {[%clk 00:55:15]} {[%emt 00:02:09]} 24. fxe5+ {[%clk
00:20:21]} {[%emt 00:00:41]} Kg7 {[%clk 00:55:29]} {[%emt 00:00:12]} 25. Nh5+
{[%clk 00:19:14]} {[%emt 00:01:41]} Kf8 {[%clk 00:55:01]} {[%emt 00:00:57]} 26.
Qh6+ {[%clk 00:15:10]} {[%emt 00:04:35]} Ke7 {[%clk 00:55:23]} {[%emt
00:00:08]} 27. Qg5+ {[%clk 00:15:20]} {[%emt 00:00:18]} Kxd7 {[%clk 00:54:46]}
{[%emt 00:01:08]} 28. Rd1+ {[%clk 00:15:45]} {[%emt 00:00:07]} Kc6 {[%clk
00:54:48]} {[%emt 00:00:27]} 29. Qxd8 {[%clk 00:13:12]} {[%emt 00:03:03]} Qc5+
{[%clk 00:55:10]} {[%emt 00:00:07]} 30. Kh1 {[%clk 00:13:30]} {[%emt 00:00:12]}
Qxe5 {[%clk 00:54:49]} {[%emt 00:00:51]} 31. Rc1+ {[%clk 00:13:41]} {[%emt
00:00:19]} Kb7 {[%clk 00:55:03]} {[%emt 00:00:16]} 32. Rxf7+ {[%clk 00:14:07]}
{[%emt 00:00:04]} Qe7 {[%clk 00:55:09]} {[%emt 00:00:24]} 33. Rxe7+ {[%clk
00:14:25]} {[%emt 00:00:13]} Kb8 {[%clk 00:55:34]} {[%emt 00:00:04]} 34. Rxc8#
{[%clk 00:14:47]} {[%emt 00:00:09]} 1-0

[Event "Latvijas 2022. gada jauniešu čempionāta fināls"]
[Site "Riga, Latvia"]
[Date "2022.06.16"]
[Round "8.26"]
[White "Tabors, Emils"]
[Black "Springis, Jevgenijs"]
[Result "1/2-1/2"]
[TimeControl "3600+30"]
[WhiteElo "1813"]
[BlackElo "1975"]

1. d4 {[%clk 01:00:58]} {[%emt 00:00:02]} f5 {[%clk 01:00:51]} {[%emt
00:00:10]} 2. c4 {[%clk 01:01:13]} {[%emt 00:00:14]} Nf6 {[%clk 01:00:36]}
{[%emt 00:00:45]} 3. Nc3 {[%clk 01:01:29]} {[%emt 00:00:15]} d6 {[%clk
01:00:28]} {[%emt 00:00:38]} 4. Nf3 {[%clk 00:58:52]} {[%emt 00:03:07]} g6
{[%clk 01:00:13]} {[%emt 00:00:45]} 5. g3 {[%clk 00:58:48]} {[%emt 00:00:34]}
Bg7 {[%clk 00:59:52]} {[%emt 00:00:51]} 6. Bg2 {[%clk 00:59:08]} {[%emt
00:00:09]} O-O {[%clk 00:59:09]} {[%emt 00:01:13]} 7. O-O {[%clk 00:59:29]}
{[%emt 00:00:09]} Nc6 {[%clk 00:57:28]} {[%emt 00:02:12]} 8. d5 {[%clk
00:46:33]} {[%emt 00:13:25]} Ne5 {[%clk 00:56:51]} {[%emt 00:01:07]} 9. c5
{[%clk 00:46:42]} {[%emt 00:00:21]} Nf7 {[%clk 00:52:52]} {[%emt 00:04:29]} 10.
cxd6 {[%clk 00:35:52]} {[%emt 00:11:20]} exd6 {[%clk 00:48:54]} {[%emt
00:04:28]} 11. Qc2 {[%clk 00:25:17]} {[%emt 00:11:06]} Bd7 {[%clk 00:46:30]}
{[%emt 00:02:53]} 12. Be3 {[%clk 00:22:48]} {[%emt 00:02:58]} Qe7 {[%clk
00:39:29]} {[%emt 00:07:30]} 13. Rac1 {[%clk 00:21:38]} {[%emt 00:01:42]} Rfe8
{[%clk 00:34:32]} {[%emt 00:05:27]} 14. Rfd1 {[%clk 00:17:14]} {[%emt
00:04:54]} Ng4 {[%clk 00:33:15]} {[%emt 00:01:46]} 15. Bd4 {[%clk 00:16:58]}
{[%emt 00:00:47]} Nfe5 {[%clk 00:31:48]} {[%emt 00:01:57]} 16. h3 {[%clk
00:14:21]} {[%emt 00:03:06]} Nxf3+ {[%clk 00:31:42]} {[%emt 00:00:37]} 17. exf3
{[%clk 00:14:32]} {[%emt 00:00:18]} Bxd4 {[%clk 00:29:25]} {[%emt 00:02:48]} 18.
Rxd4 {[%clk 00:14:49]} {[%emt 00:00:13]} Ne3 {[%clk 00:29:19]} {[%emt
00:00:36]} 19. Qd2 {[%clk 00:13:47]} {[%emt 00:01:33]} Nxg2 {[%clk 00:29:42]}
{[%emt 00:00:07]} 20. Kxg2 {[%clk 00:14:14]} {[%emt 00:00:03]} Qf6 {[%clk
00:28:34]} {[%emt 00:01:35]} 21. Rf4 {[%clk 00:10:50]} {[%emt 00:03:56]} Qe5
{[%clk 00:24:02]} {[%emt 00:05:01]} 22. Qd4 {[%clk 00:08:40]} {[%emt 00:02:41]}
c5 {[%clk 00:21:27]} {[%emt 00:03:05]} 23. dxc6 {[%clk 00:08:06]} {[%emt
00:01:05]} bxc6 {[%clk 00:21:51]} {[%emt 00:00:05]} 24. Rd1 {[%clk 00:07:03]}
{[%emt 00:01:33]} Qxd4 {[%clk 00:21:10]} {[%emt 00:01:12]} 25. Rfxd4 {[%clk
00:07:28]} {[%emt 00:00:04]} d5 {[%clk 00:21:34]} {[%emt 00:00:06]} 26. b4
{[%clk 00:07:10]} {[%emt 00:00:48]} Be6 {[%clk 00:21:07]} {[%emt 00:00:54]} 27.
R4d2 {[%clk 00:06:19]} {[%emt 00:01:24]} a6 {[%clk 00:19:40]} {[%emt 00:01:57]}
28. a4 {[%clk 00:06:22]} {[%emt 00:00:27]} Rab8 {[%clk 00:19:26]} {[%emt
00:00:45]} 29. b5 {[%clk 00:06:29]} {[%emt 00:00:22]} axb5 {[%clk 00:19:28]}
{[%emt 00:00:29]} 30. axb5 {[%clk 00:06:57]} {[%emt 00:00:02]} cxb5 {[%clk
00:19:47]} {[%emt 00:00:10]} 31. Nxd5 {[%clk 00:07:22]} {[%emt 00:00:04]} Bxd5
{[%clk 00:19:39]} {[%emt 00:00:39]} 32. Rxd5 {[%clk 00:07:48]} {[%emt
00:00:04]} Re7 {[%clk 00:16:28]} {[%emt 00:03:40]} 33. Rb1 {[%clk 00:05:42]}
{[%emt 00:02:37]} Reb7 {[%clk 00:16:51]} {[%emt 00:00:06]} 34. Rb4 {[%clk
00:06:04]} {[%emt 00:00:10]} Kf7 {[%clk 00:17:13]} {[%emt 00:00:06]} 35. Re5
{[%clk 00:05:34]} {[%emt 00:01:01]} Kf6 {[%clk 00:16:07]} {[%emt 00:01:36]} 36.
f4 {[%clk 00:05:42]} {[%emt 00:00:22]} g5 {[%clk 00:13:38]} {[%emt 00:02:58]}
37. Kh2 {[%clk 00:04:52]} h5 {[%clk 00:13:40]} {[%emt 00:01:50]} 38. h4 {[%clk
00:04:43]} gxf4 {[%clk 00:13:31]} {[%emt 00:01:17]} 39. gxf4 {[%clk 00:05:09]}
Rg8 {[%emt 00:02:18]} 40. Rbxb5 Rxb5 41. Rxb5 Rg4 42. Rb6+ Kf7 {[%clk
00:11:46]} 43. Kh3 {[%clk 00:05:55]} {[%emt 00:02:19]} Rxf4 {[%clk 00:12:30]}
{[%emt 00:00:11]} 44. Kg3 {[%clk 00:02:14]} {[%emt 00:04:12]} Rg4+ {[%clk
00:12:48]} {[%emt 00:00:12]} 45. Kh3 {[%clk 00:02:41]} {[%emt 00:00:03]} Kg7
{[%clk 00:05:28]} {[%emt 00:07:50]} 46. Ra6 {[%clk 00:03:02]} {[%emt 00:00:09]}
f4 {[%clk 00:04:16]} {[%emt 00:01:42]} 47. Rb6 {[%clk 00:01:55]} {[%emt
00:01:37]} Rg6 {[%clk 00:02:49]} {[%emt 00:01:57]} 48. Rb5 {[%clk 00:01:48]}
{[%emt 00:00:37]} Kh6 {[%clk 00:02:42]} {[%emt 00:00:37]} 49. Rf5 {[%clk
00:01:03]} {[%emt 00:01:14]} Rg4 {[%clk 00:03:05]} {[%emt 00:00:07]} 50. Rb5
{[%clk 00:01:29]} {[%emt 00:00:04]} Kg6 {[%clk 00:03:14]} {[%emt 00:00:20]} 51.
Ra5 {[%clk 00:01:52]} {[%emt 00:00:08]} Rg1 {[%clk 00:02:16]} {[%emt 00:01:28]}
52. Kh2 {[%clk 00:01:45]} Rg4 {[%clk 00:02:21]} {[%emt 00:01:02]} 53. Kh3
{[%clk 00:02:11]} {[%emt 00:00:04]} Kh6 {[%clk 00:01:52]} {[%emt 00:00:58]} 54.
Rf5 {[%clk 00:02:20]} {[%emt 00:00:20]} 1/2-1/2